bitfinex-derivatives/quotes_SOLF0:USTF0_20260202
["timestamp","ask_amount","ask_price","bid_price","bid_amount"]
[1770021120392,39.10517246,101.85,101.76,139.93758475]
[1770021120686,39.10517246,101.85,101.78,2.23405113]
[1770021120887,46.32060425,101.9,101.81,139.89975113]
[1770021121083,46.32060425,101.93,101.84,139.85735113]
[1770021121287,46.32060425,101.93,101.84,148.70415113]
[1770021121791,46.32060425,101.93,101.84,11.08085113]
[1770021122183,39.10517246,101.92,101.84,2.23405113]
[1770021122680,39.10517246,101.92,101.83,137.6404]
[1770021122681,39.10517246,101.92,101.82,147.89673448]
[1770021122883,39.10517246,101.92,101.83,147.88583448]
[1770021123090,39.10517246,101.92,101.84,139.02313448]
[1770021123387,39.10517246,101.92,101.82,137.6509]
[1770021123589,39.10517246,101.92,101.86,0.06218615]
[1770021123990,39.10517246,101.92,101.82,531.34805006]
[1770021123991,46.32060425,101.91,101.82,8.8488]
[1770021125289,39.10517246,101.9,101.81,1.45933621]
[1770021125489,39.10517246,101.9,101.81,139.12733621]
[1770021125691,39.10517246,101.9,101.82,138.33607489]
[1770021125889,39.10517246,101.9,101.83,147.16977489]
[1770021126095,39.10517246,101.93,101.84,138.30867489]
[1770021126796,39.10517246,101.92,101.84,9.52857489]
[1770021126989,39.10517246,101.91,101.84,0.68147489]
[1770021127295,39.10517246,101.9,101.81,138.37752134]
[1770021127597,39.16773611,101.89,101.81,9.56332134]
[1770021127795,39.16773611,101.89,101.82,137.6547]
[1770021127995,39.10517246,101.89,101.82,137.6547]
[1770021129397,39.10517246,101.89,101.82,147.30261489]
[1770021129587,0.06237779,101.87,101.82,147.30261489]
[1770021131697,0.06237779,101.87,101.83,147.49303578]
[1770021132498,0.06237779,101.87,101.83,8.848]
[1770021132892,38.75117333,101.87,101.81,146.5179]
[1770021133296,0.06237779,101.87,101.81,138.8198325]
[1770021133598,0.06237779,101.87,101.82,8.8487]
[1770021133992,38.75117571,101.87,101.8,146.5321]
[1770021134401,0.06237779,101.87,101.82,1.4952969]
[1770021134594,38.51701867,101.89,101.82,1.4952969]
[1770021134595,38.51701867,101.89,101.82,139.1491969]
[1770021134799,38.51701867,101.89,101.82,8.8489]
[1770021137706,38.51701867,101.89,101.8,148.0273969]
[1770021138206,45.55651509,101.88,101.79,391.9]
[1770021138398,45.55651509,101.88,101.78,139.54344607]
[1770021138603,45.55651509,101.88,101.79,137.6959]
[1770021139407,38.39617744,101.87,101.78,1.84574607]
[1770021139898,38.39617744,101.85,101.77,391.88]
[1770021140505,38.39617744,101.85,101.77,400.7334]
[1770021142306,38.39617744,101.85,101.77,8.8534]
[1770021142501,38.39617744,101.85,101.79,1.63239528]
[1770021142709,38.44886729,101.87,101.8,139.31429528]
[1770021143207,7.2145675,101.89,101.8,139.31429528]
[1770021143208,45.66343479,101.89,101.81,139.30109528]
[1770021143408,38.44886729,101.89,101.82,1.632486]
[1770021144510,38.44886729,101.89,101.82,148.136586]
[1770021145511,38.44886729,101.89,101.82,10.481386]
[1770021146306,38.44886729,101.89,101.83,8.8481]
[1770021146608,0.06218269,101.87,101.82,1.632486]
[1770021146801,38.27329946,101.87,101.8,2.1082674]
[1770021147005,38.27329946,101.87,101.78,139.8169674]
[1770021147407,38.21111677,101.87,101.78,139.8169674]
[1770021147601,45.42568427,101.87,101.78,139.8169674]
[1770021147802,45.42568427,101.87,101.78,2.1082674]
[1770021148402,38.18613782,101.86,101.78,139.8171674]
[1770021148708,38.18613782,101.86,101.79,139.8537045]
[1770021148908,38.18613782,101.86,101.8,8.8508]
[1770021149315,38.18613782,101.86,101.79,139.8537045]
[1770021149316,38.18613782,101.86,101.79,2.1584045]
[1770021149606,38.18613782,101.86,101.78,8.8523]
[1770021149814,7.2145675,101.85,101.77,2.15848974]
[1770021150014,38.18613923,101.84,101.77,2.15848974]
[1770021150809,45.37380162,101.87,101.79,2.212387]
[1770021151005,45.37380162,101.87,101.79,139.907587]
[1770021151617,45.37380162,101.87,101.8,8.8508]
[1770021152717,54.21890162,101.87,101.8,8.8508]
[1770021153015,37.82491717,101.86,101.79,2.212387]
[1770021153408,46.67081717,101.86,101.79,8.8517]
[1770021153607,37.82491717,101.86,101.79,8.8517]
[1770021154011,0.06233204,101.84,101.79,8.8517]
[1770021154407,37.60289055,101.84,101.79,8.8517]
[1770021154609,37.60289055,101.84,101.77,11.73417418]
[1770021155316,37.54055851,101.84,101.77,11.73417418]
[1770021155818,37.54055851,101.84,101.78,8.8525]
[1770021156020,37.54055851,101.84,101.78,141.15915743]
[1770021156219,37.54055915,101.86,101.78,141.15915743]
[1770021156519,37.54055915,101.86,101.8,8.8507]
[1770021159419,37.54055915,101.86,101.81,8.85]
[1770021161428,38.01690335,101.88,101.82,8.8491]
[1770021164021,46.86100335,101.88,101.81,8.85]
[1770021164225,38.01690335,101.88,101.81,8.85]
[1770021164726,46.86100335,101.88,101.8,12.61821262]
[1770021164926,38.01690335,101.86,101.8,12.61821262]
[1770021165326,38.01690335,101.86,101.78,8.852]
[1770021165529,38.01690335,101.84,101.78,8.852]
[1770021166530,38.01690335,101.84,101.76,8.854]
[1770021167328,45.23147085,101.83,101.76,8.854]
[1770021168329,37.31832189,101.82,101.74,27.05636637]
[1770021168520,37.31832189,101.82,101.73,159.9050328]
[1770021169524,46.16782189,101.82,101.73,12.79356643]
[1770021171422,37.32721627,101.8,101.74,3.91948033]
[1770021171827,37.32721627,101.8,101.74,141.68088033]
[1770021172026,37.32721627,101.83,101.76,141.65598033]
[1770021172228,37.32721627,101.83,101.77,275.4363]
[1770021172631,37.32721627,101.83,101.76,150.50978033]
[1770021172831,37.32721627,101.83,101.76,8.8538]
[1770021173032,37.30980784,101.82,101.74,395.91436318]
[1770021173527,44.52437566,101.81,101.72,22.15529416]
[1770021174331,37.35086325,101.79,101.72,12.81172779]
[1770021174527,37.35086325,101.79,101.71,155.99386637]
[1770021174731,37.35086325,101.79,101.71,159.86624848]
[1770021175432,37.35086325,101.79,101.72,12.73014518]
[1770021178830,37.35086325,101.79,101.73,142.08584916]
[1770021179735,37.13280522,101.81,101.74,4.30880971]
[1770021180435,37.13280522,101.81,101.75,8.8552]
[1770021180834,44.34737272,101.81,101.73,8.8564]
[1770021181034,37.08581736,101.79,101.73,8.8564]
[1770021181331,37.08581736,101.79,101.7,534.27950487]
[1770021181530,44.30038486,101.79,101.7,534.27950487]
[1770021181730,37.08581736,101.79,101.72,4.40290487]
[1770021181932,37.08581736,101.79,101.69,379.94362992]
[1770021181933,37.08581748,101.77,101.69,228.32566842]
[1770021182134,37.08581748,101.76,101.69,237.18616842]
[1770021182336,37.14791717,101.76,101.69,237.18616842]
[1770021182638,37.08581748,101.76,101.69,237.18616842]
[1770021182836,380.04828748,101.79,101.71,4.23802368]
[1770021183131,37.16828748,101.85,101.77,141.95692368]
[1770021183534,37.16828748,101.85,101.78,146.56]
[1770021183732,37.16828748,101.85,101.78,150.79808145]
[1770021183930,21.79368748,101.85,101.8,137.6796]
[1770021184128,7.2145675,101.88,101.8,19.61268145]
[1770021184341,0.06223008,101.83,101.8,19.61268145]
[1770021184639,0.06223008,101.83,101.8,28.46328145]
[1770021184836,96.9145675,101.9,101.81,137.6688]
[1770021185140,7.2145675,101.9,101.81,137.6688]
[1770021185342,7.2145675,101.9,101.81,157.99401143]
[1770021186034,36.63997937,101.9,101.84,20.32526839]
[1770021186337,43.85454687,101.9,101.82,156.92718479]
[1770021187039,43.85454687,101.9,101.82,165.77628479]
[1770021187240,43.85454687,101.9,101.82,8.8487]
[1770021187437,36.63997937,101.88,101.8,165.80463971]
[1770021188541,36.63997937,101.88,101.8,28.12273971]
[1770021189244,38.51102028,101.86,101.78,8.8522]
[1770021189643,45.72995993,101.85,101.77,18.78946156]
[1770021192339,45.72995993,101.85,101.77,156.51116156]
[1770021192944,38.51102028,101.84,101.75,156.5639653]
[1770021193454,45.72995993,101.83,101.75,18.8255653]
[1770021195048,38.51102028,101.82,101.75,18.8255653]
[1770021195348,38.51102028,101.82,101.74,354.6359]
[1770021195548,38.51102028,101.82,101.74,373.64564385]
[1770021195748,45.72995993,101.81,101.72,165.64584385]
[1770021196253,45.72995993,101.81,101.72,27.86734385]
[1770021196451,38.51102028,101.8,101.72,27.86734385]
[1770021198047,38.51102028,101.78,101.69,380.45475566]
[1770021198550,38.51102028,101.77,101.69,251.49245566]
[1770021198750,38.51102028,101.77,101.66,529.8808]
[1770021198751,38.51102028,101.75,101.66,156.64017455]
[1770021199146,38.51102028,101.75,101.67,18.77937455]
[1770021199749,45.72995993,101.75,101.67,18.77937455]
[1770021200353,45.72995993,101.75,101.7,0.06216695]
[1770021200558,38.51102028,101.75,101.7,0.06216695]
[1770021200855,38.51102028,101.77,101.71,165.71982656]
[1770021201055,45.72995993,101.79,101.71,27.91682656]
[1770021201756,38.51102028,101.78,101.71,27.91682656]
[1770021201960,38.51102028,101.78,101.71,165.72082656]
[1770021202159,137.6801,101.81,101.72,165.70700329]
[1770021202160,45.72995993,101.81,101.72,165.70700329]
[1770021202459,45.72995993,101.83,101.75,157.16788093]
[1770021202854,137.6132,101.86,101.75,157.16788093]
[1770021202855,38.51102028,101.86,101.78,157.12828093]
[1770021203049,38.51102028,101.86,101.76,157.15808093]
[1770021203250,38.51102028,101.86,101.77,19.42208093]
[1770021203663,38.51102028,101.85,101.77,28.27528093]
[1770021203956,38.51102028,101.85,101.74,19.42235262]
[1770021203957,38.51102028,101.83,101.74,19.42235262]
[1770021204162,38.51102028,101.82,101.74,19.42235262]
[1770021205156,38.51102028,101.81,101.73,8.8566]
[1770021206162,38.51102028,101.8,101.72,411.34007959]
[1770021206362,38.51102028,101.79,101.72,411.34007959]
[1770021206663,38.51102028,101.79,101.72,420.19767959]
[1770021207659,38.51102028,101.79,101.72,557.98837959]
[1770021208252,38.51102028,101.82,101.75,27.83813607]
[1770021208858,38.51102028,101.82,101.75,18.98313607]
[1770021210363,38.51102028,101.82,101.75,27.83803607]
[1770021210961,38.51102028,101.84,101.77,19.79829666]
[1770021211260,38.51102028,101.86,101.79,157.49359666]
[1770021211558,137.572,101.89,101.82,166.30194555]
[1770021211559,38.51102028,101.89,101.82,166.30194555]
[1770021211761,7.21893965,101.91,101.82,166.30194555]
[1770021211762,38.51102028,101.91,101.84,157.42114555]
[1770021211955,7.21893965,101.93,101.83,137.6379]
[1770021211956,38.51102028,101.92,101.85,19.79854555]
[1770021212156,38.51102028,101.91,101.82,166.30184555]
[1770021212353,38.51102028,101.9,101.82,28.64734555]
[1770021212854,47.35362028,101.9,101.82,19.79854555]
[1770021213054,38.51102028,101.88,101.8,8.8504]
[1770021213364,38.51102028,101.88,101.79,175.4272759]
[1770021213365,38.51102028,101.86,101.79,19.53860953]
[1770021213564,184.95852028,101.86,101.76,567.54851829]
[1770021213760,184.95852028,101.86,101.76,411.61885192]
[1770021213761,38.51102028,101.84,101.76,411.61885192]
[1770021214262,176.14242028,101.84,101.76,411.61885192]
[1770021214462,38.51102028,101.83,101.76,411.61885192]
[1770021214658,38.51102028,101.83,101.76,19.53885192]
[1770021214864,38.51102028,101.82,101.74,8.8556]
[1770021215059,38.51102028,101.82,101.74,27.51043459]
[1770021215263,38.51102028,101.81,101.74,18.65483459]
[1770021218066,38.58896472,101.79,101.71,253.12093167]
[1770021218465,38.58896472,101.78,101.71,20.44745866]
[1770021218672,38.58896472,101.76,101.68,20.82691112]
[1770021219168,185.18226472,101.76,101.68,20.82691112]
[1770021219368,38.58896472,101.75,101.67,167.54553837]
[1770021219565,38.58896472,101.75,101.67,29.68923837]
[1770021219766,38.58896472,101.75,101.68,20.82713837]
[1770021219961,38.58896472,101.75,101.7,0.06208189]
[1770021220565,38.58896472,101.74,101.65,176.39576063]
[1770021220765,153.82553965,101.75,101.65,176.39576063]
[1770021220766,38.58896472,101.73,101.65,158.20729426]
[1770021221073,38.58896472,101.71,101.63,18.20086637]
[1770021221364,38.58896472,101.68,101.61,158.3228968]
[1770021221569,45.80790437,101.73,101.64,20.3841968]
[1770021221769,38.58896472,101.72,101.64,20.3841968]
[1770021222265,38.58896472,101.69,101.61,20.3841968]
[1770021222564,38.58896472,101.72,101.64,21.15981376]
[1770021222966,38.58896472,101.72,101.65,21.15981376]
[1770021223165,38.58896472,101.75,101.68,21.15981376]
[1770021223367,38.58896472,101.75,101.68,159.00121376]
[1770021223563,38.58896472,101.75,101.68,21.15981376]
[1770021224260,38.58896472,101.75,101.67,159.01803149]
[1770021224460,346.89893965,101.77,101.68,160.20983238]
[1770021224667,38.58896472,101.78,101.71,137.8018]
[1770021224966,38.58896472,101.78,101.71,160.16763238]
[1770021225465,38.58896472,101.78,101.71,22.36583238]
[1770021225666,45.80790437,101.8,101.72,160.15614836]
[1770021226163,38.58896472,101.8,101.72,169.01394836]
[1770021226465,38.58896472,101.8,101.73,137.7765]
[1770021227170,38.58896472,101.8,101.73,146.6335]
[1770021227372,38.58896472,101.8,101.73,168.10617617]
[1770021228261,38.32341694,101.83,101.75,159.16778077]
[1770021228965,38.32341694,101.83,101.76,158.82449204]
[1770021229169,45.54235659,101.86,101.77,158.81139204]
[1770021229575,38.32341694,101.86,101.78,158.7955787]
[1770021229775,137.555,101.9,101.81,158.7546787]
[1770021229776,38.32341694,101.89,101.81,158.7546787]
[1770021230470,38.32341694,101.88,101.79,137.6935]
[1770021230674,38.32341694,101.88,101.81,167.49118737]
[1770021231570,38.32341694,101.9,101.81,158.64128737]
[1770021231770,38.32341694,101.88,101.81,20.97358737]
[1770021232674,0.06269176,101.86,101.81,20.97358737]
[1770021232878,0.06269176,101.86,101.79,137.6935]
[1770021233174,0.06269176,101.86,101.8,158.3450221]
[1770021233369,38.32341694,101.88,101.8,158.3450221]
[1770021233569,38.32341694,101.88,101.8,29.5138221]
[1770021235983,38.32341694,101.88,101.8,167.1937221]
[1770021236275,38.32341694,101.9,101.82,20.57738752]
[1770021237371,38.32341694,101.9,101.82,146.5034]
[1770021237577,38.32341694,101.9,101.83,20.49550868]
[1770021238074,38.32341694,101.89,101.8,158.17540868]
[1770021238279,175.91521694,101.87,101.78,20.49550868]
[1770021238479,45.54235659,101.86,101.78,20.49550868]
[1770021239073,45.54235659,101.86,101.75,457.7782]
[1770021239074,38.32341694,101.83,101.75,20.44855678]
[1770021240174,38.32341694,101.81,101.73,8.8569]
[1770021240983,38.32341694,101.81,101.73,28.21888324]
[1770021241881,475.8502,101.84,101.73,28.21888324]
[1770021241882,383.76235659,101.84,101.76,19.3621422]
[1770021242186,45.54235659,101.84,101.76,19.3621422]
[1770021242483,38.32341694,101.83,101.75,165.81078759]
[1770021242683,7.72693253,101.84,101.77,156.92738759]
[1770021242987,46.05034947,101.86,101.79,8.8515]
[1770021243386,38.32341694,101.86,101.79,8.8515]
[1770021244583,38.32341694,101.86,101.79,166.4764362]
[1770021244784,38.32341694,101.86,101.77,146.5747]
[1770021244985,38.32341694,101.86,101.79,157.6250362]
[1770021246385,38.32341694,101.89,101.81,157.59748909]
[1770021246891,38.32341694,101.89,101.81,28.77918909]
[1770021247683,46.05034947,101.88,101.79,400.8315]
[1770021247883,46.05034947,101.88,101.79,558.48308874]
[1770021248086,46.05034947,101.88,101.8,19.95578874]
[1770021248390,46.05034947,101.88,101.81,157.51879444]
[1770021248596,36.66879804,101.91,101.83,137.6394]
[1770021249087,36.66879804,101.91,101.83,8.848]
[1770021249391,44.39573057,101.9,101.82,19.84999444]
[1770021249687,36.66879804,101.89,101.8,157.53233861]
[1770021249885,0.06291491,101.88,101.81,19.85013861]
[1770021250279,36.66879804,101.89,101.81,28.69963861]
[1770021250478,44.3876348,101.89,101.81,28.69963861]
[1770021251686,36.66879804,101.87,101.8,157.53832938]
[1770021252485,44.3876348,101.89,101.81,162.99802829]
[1770021252788,36.66879804,101.89,101.82,16.48032829]
[1770021252987,337.26,101.9,101.83,16.48032829]
[1770021253579,44.3876348,101.91,101.83,16.48032829]
[1770021254483,36.66879804,101.93,101.85,16.0713156]
[1770021254689,36.66879804,101.93,101.85,153.6862156]
[1770021255081,244.26,101.95,101.87,16.0713156]
[1770021255280,36.66879804,101.96,101.87,16.0713156]
[1770021255281,44.3876348,101.96,101.88,16.0713156]
[1770021255986,36.66879804,101.95,101.88,16.0713156]
[1770021256484,36.66879804,101.97,101.89,154.112111]
[1770021256890,36.66879804,101.97,101.89,16.552411]
[1770021257290,36.66879804,101.97,101.89,162.955311]
[1770021257491,36.66879804,101.97,101.89,25.394911]
[1770021257693,0.06239841,101.94,101.89,16.552411]
[1770021257993,0.06239841,101.94,101.89,162.953111]
[1770021258182,0.06239841,101.94,101.87,545.9990369]
[1770021258381,0.06239841,101.94,101.87,154.1390369]
[1770021258585,0.06239841,101.94,101.87,25.3969369]
[1770021258782,36.66879804,101.95,101.87,162.9838369]
[1770021259191,36.66879804,101.95,101.87,25.3969369]
[1770021259990,36.66879804,101.98,101.9,146.389]
[1770021260195,36.66879804,101.98,101.91,137.5292]
[1770021260494,36.66879804,101.98,101.91,153.85543811]
[1770021260796,36.66879804,101.96,101.87,153.91313811]
[1770021261093,36.66879804,101.95,101.87,16.32623811]
[1770021261786,36.66879804,101.95,101.87,25.17053811]
[1770021261988,44.3876348,101.95,101.87,25.17053811]
[1770021262588,53.2258348,101.95,101.87,25.17053811]
[1770021262786,53.2258348,101.95,101.86,137.5925]
[1770021262787,44.3876348,101.93,101.86,153.16704855]
[1770021262992,36.66879804,101.93,101.86,153.16704855]
[1770021263692,36.66879804,101.93,101.86,24.41124855]
[1770021264194,36.66879804,101.93,101.86,15.56604855]
[1770021264195,44.3876348,101.93,101.86,15.56604855]
[1770021264398,44.3876348,101.93,101.84,137.6166]
[1770021264692,44.3876348,101.93,101.84,152.73633875]
[1770021265092,36.66879804,101.92,101.84,161.58323875]
[1770021265298,36.66879804,101.92,101.84,152.73633875]
[1770021266396,36.66879804,101.92,101.85,152.73435134]
[1770021266801,0.0626389,101.89,101.85,152.73435134]
[1770021266993,36.66879804,101.92,101.85,152.73435134]
[1770021267397,36.66879804,101.92,101.85,15.11985134]
[1770021267802,36.66879804,101.92,101.84,137.6166]
[1770021268202,36.66879804,101.92,101.85,23.39694762]
[1770021269107,36.66879804,101.92,101.87,0.06374528]
[1770021270199,45.50959804,101.92,101.87,0.06374528]
[1770021271506,36.66879804,101.9,101.82,152.11510476]
[1770021272201,36.66879804,101.9,101.83,23.39705562]
[1770021273106,45.51149804,101.9,101.83,14.54895562]
[1770021274304,45.51149804,101.9,101.83,23.39715562]
[1770021274501,0.06211373,101.88,101.83,23.39715562]
[1770021275101,0.06211373,101.88,101.84,23.49611684]
[1770021275298,45.51009804,101.92,101.84,152.27621684]
[1770021276407,45.51009804,101.92,101.85,8.8465]
[1770021276803,36.66879804,101.92,101.86,8.8454]
[1770021277007,45.50799804,101.94,101.86,14.63775788]
[1770021277509,45.50869804,101.93,101.86,14.63775788]
[1770021277709,36.62006303,101.92,101.84,152.26525126]
[1770021277910,36.62006303,101.92,101.85,14.61887201]
[1770021278213,36.62006303,101.92,101.85,23.46537201]
[1770021278401,36.62006303,101.92,101.86,14.64478432]
[1770021278708,36.62006303,101.94,101.86,14.64478432]
[1770021279309,45.45906303,101.94,101.86,23.49038432]
[1770021279812,36.62006303,101.91,101.84,8.847]
[1770021280015,44.33889979,101.91,101.83,14.64487453]
[1770021281311,44.33889979,101.93,101.85,14.63094363]
[1770021281906,53.17869979,101.93,101.86,8.8456]
[1770021282310,36.62006303,101.92,101.85,14.63094363]
[1770021282504,45.46106303,101.92,101.85,14.63094363]
[1770021283714,45.46106303,101.92,101.83,181.90350527]
[1770021283911,44.33889979,101.91,101.83,23.62220527]
[1770021285420,45.46246303,101.9,101.83,23.62220527]
[1770021286409,36.62006303,101.9,101.84,23.71933127]
[1770021287715,36.62006303,101.9,101.85,8.8465]
[1770021288418,35.6002192,101.92,101.85,14.8431082]
[1770021289416,35.6002192,101.92,101.86,8.8456]
[1770021289918,8.8396,101.94,101.87,23.66711337]
[1770021290220,44.4398192,101.94,101.86,14.82241337]
[1770021290613,44.4398192,101.94,101.86,23.66801337]
[1770021291924,35.6002192,101.92,101.84,433.6814732]
[1770021292127,35.6002192,101.92,101.84,23.80060683]
[1770021292625,35.6002192,101.9,101.82,179.69938792]
[1770021293325,44.4428192,101.9,101.82,42.04458792]
[1770021293830,44.4428192,101.9,101.82,23.84372155]
[1770021295223,35.6002192,101.9,101.83,14.81537737]
[1770021295424,35.6002192,101.9,101.84,14.81537737]
[1770021296022,35.6002192,101.9,101.85,8.8465]
[1770021296324,35.6002192,101.92,101.85,14.81545167]
[1770021296528,35.6002192,101.92,101.85,170.62951804]
[1770021297421,7.71883676,101.93,101.86,23.47340777]
[1770021297924,43.31905596,101.93,101.86,41.67427414]
[1770021298135,35.6002192,101.93,101.86,41.67427414]
[1770021298430,43.31905596,101.93,101.86,8.8456]
[1770021298632,35.6002192,101.92,101.85,8.8464]
[1770021299125,35.6002192,101.92,101.85,23.54409294]
[1770021299918,35.6002192,101.92,101.85,41.74495931]
[1770021300119,35.6002192,101.92,101.86,8.8455]
[1770021300632,35.6002192,101.92,101.86,41.68885434]
[1770021300829,35.6002192,101.92,101.86,23.48798797]
[1770021301030,35.6002192,101.92,101.84,562.14585434]
[1770021301231,35.6002192,101.92,101.84,170.46585434]
[1770021301429,43.31905596,101.91,101.83,409.86086637]
[1770021301637,35.6002192,101.88,101.81,18.20086637]
[1770021301925,35.6002192,101.88,101.79,18.20086637]
[1770021301926,35.6002192,101.84,101.79,18.20086637]
[1770021302130,43.31905596,101.83,101.76,32.8434235]
[1770021302325,43.31905596,101.83,101.74,18.20086637]
[1770021302526,43.31905596,101.83,101.74,32.8206639]
[1770021302727,52.16765596,101.83,101.75,8.8547]
[1770021303232,43.31905596,101.83,101.76,8.8542]
[1770021304131,43.31905596,101.83,101.72,18.20086637]
[1770021304132,35.6002192,101.79,101.72,18.20086637]
[1770021304332,35.6002192,101.79,101.71,220.74055955]
[1770021304333,35.6002192,101.78,101.71,220.74055955]
[1770021304535,35.6002192,101.74,101.66,18.20086637]
[1770021304735,35.6002192,101.74,101.67,137.8579]
[1770021305034,7.71883676,101.75,101.67,24.39875696]
[1770021305222,181.05635596,101.76,101.67,24.39875696]
[1770021305423,43.31905596,101.76,101.67,24.39875696]
[1770021306031,35.6002192,101.75,101.67,24.39875696]
[1770021306427,145.45683676,101.76,101.65,146.7473]
[1770021306428,35.6002192,101.73,101.65,146.7473]
[1770021306732,35.6002192,101.73,101.65,163.43112106]
[1770021307528,7.71883676,101.74,101.67,16.68388739]
[1770021307734,43.31905596,101.76,101.67,16.68388739]
[1770021308026,43.31905596,101.76,101.67,154.54168739]
[1770021308230,43.31905596,101.76,101.68,137.8442]
[1770021309136,43.31905596,101.76,101.67,16.68388739]
[1770021309334,43.31905596,101.76,101.67,154.54178739]
[1770021309633,43.31905596,101.76,101.71,0.06240517]
[1770021312434,43.33891071,101.76,101.71,0.06240517]
[1770021313531,44.92566579,101.78,101.71,0.06240517]
[1770021313726,37.18697428,101.78,101.72,17.81643786]
[1770021314136,44.92566579,101.8,101.72,164.46353786]
[1770021314636,44.92566579,101.8,101.72,164.46253786]
[1770021315134,37.18697428,101.8,101.73,17.91989329]
[1770021317233,37.18697428,101.77,101.68,137.844]
[1770021317435,37.18697428,101.77,101.68,155.83096103]
[1770021317940,44.92566579,101.76,101.68,26.84786103]
[1770021318529,37.18697428,101.76,101.68,26.84786103]
[1770021318735,44.92566579,101.76,101.71,0.06231088]
[1770021319536,37.18697428,101.75,101.66,556.77420663]
[1770021319738,37.18697428,101.75,101.67,155.80840663]
[1770021320135,46.04267428,101.75,101.66,392.1]
[1770021320342,44.92566579,101.74,101.66,392.1]
[1770021321236,37.18697428,101.73,101.65,8.8635]
[1770021321638,37.18697428,101.73,101.63,164.6304265]
[1770021321840,37.18697428,101.71,101.63,155.7652265]
[1770021322141,44.92566579,101.74,101.66,8.8629]
[1770021322839,0.06515817,101.71,101.66,8.8629]
[1770021323231,0.06515817,101.71,101.66,164.55339203]
[1770021323436,0.06515817,101.71,101.66,26.68169203]
[1770021324241,0.06515817,101.71,101.66,8.8629]
[1770021324441,37.25213245,101.71,101.64,27.77735405]
[1770021324639,44.99082396,101.71,101.62,18.91295405]
[1770021324840,37.18697428,101.7,101.62,18.91295405]
[1770021325036,44.92566579,101.69,101.62,18.91295405]
[1770021325834,371.32697428,101.72,101.63,156.8256163]
[1770021326137,37.18697428,101.71,101.64,156.8088163]
[1770021326335,137.7641,101.74,101.66,8.8627]
[1770021326336,44.92566579,101.74,101.66,8.8627]
[1770021326536,37.18697428,101.74,101.67,137.8585]
[1770021326741,37.18697428,101.74,101.66,157.07890898]
[1770021327334,145.53149151,101.72,101.63,19.14291706]
[1770021327540,37.18697428,101.71,101.63,157.05411706]
[1770021328242,37.18697428,101.73,101.65,19.14297813]
[1770021328637,37.18697428,101.73,101.65,165.89237813]
[1770021328843,37.18697428,101.73,101.65,28.00677813]
[1770021329044,37.18697428,101.73,101.68,0.06362723]
[1770021329436,183.82267428,101.73,101.68,0.06362723]
[1770021329640,37.18697428,101.72,101.64,8.8647]
[1770021329841,37.18697428,101.71,101.63,157.83257655]
[1770021330045,37.18697428,101.71,101.64,8.8647]
[1770021330941,0.0633611,101.69,101.65,8.8638]
[1770021331143,37.18697428,101.71,101.65,146.748]
[1770021331345,37.18697428,101.71,101.63,137.9124]
[1770021331346,37.18697428,101.71,101.62,157.76842762]
[1770021331650,44.92566579,101.7,101.62,19.85382762]
[1770021332547,53.78576579,101.7,101.62,28.72032762]
[1770021333151,37.18697428,101.69,101.65,0.06262818]
[1770021334850,37.18697428,101.71,101.65,0.06262818]
[1770021335343,37.18697428,101.71,101.65,8.8639]
[1770021337248,37.18697428,101.71,101.67,0.06282601]
[1770021339847,45.53957999,101.73,101.67,0.06282601]
[1770021342151,36.68237999,101.73,101.67,0.06282601]
[1770021343351,36.68237999,101.73,101.67,8.92492601]
[1770021343545,36.68237999,101.73,101.67,158.3959731]
[1770021343753,36.68237999,101.75,101.68,20.47574709]
[1770021344151,36.68237999,101.75,101.69,29.33614709]
[1770021344851,36.68237999,101.75,101.67,28.70878514]
[1770021345057,36.68237999,101.75,101.71,0.06356691]
[1770021345751,45.53777999,101.75,101.71,0.06356691]
[1770021347258,36.68237999,101.75,101.71,0.06356691]
[1770021347654,36.68237999,101.75,101.66,558.8370367]
[1770021347855,45.53787999,101.75,101.66,549.9763367]
[1770021348348,45.53787999,101.75,101.67,19.75314162]
[1770021349459,45.53787999,101.75,101.67,28.61494162]
[1770021350252,45.53787999,101.75,101.68,8.8611]
[1770021350458,36.68237999,101.75,101.68,19.37228366]
[1770021350959,0.06210062,101.73,101.68,28.23368366]
[1770021351758,0.06210062,101.73,101.67,19.37232235]
[1770021351759,38.02401994,101.73,101.67,19.37232235]
[1770021351959,0.06210062,101.73,101.67,157.22862235]
[1770021352458,0.06210062,101.73,101.68,19.20668766]
[1770021352660,0.06210062,101.73,101.69,28.06678766]
[1770021353061,0.06210062,101.73,101.69,8.8601]
[1770021353263,0.06210062,101.73,101.67,28.06818766]
[1770021356064,0.06210062,101.73,101.68,19.40456183]
[1770021358960,0.06210062,101.73,101.68,28.26596183]
[1770021360166,0.06210062,101.73,101.69,8.8603]
[1770021360458,37.96191932,101.77,101.7,19.08903344]
[1770021360664,167.1571,101.82,101.73,19.02693282]
[1770021360665,37.96191932,101.8,101.73,19.02693282]
[1770021360865,37.96191932,101.83,101.76,156.76313282]
[1770021361066,37.96191932,101.83,101.77,19.02693282]